bitfinex-derivatives/quotes_ETHF0:USTF0_20240917
["timestamp","ask_amount","ask_price","bid_price","bid_amount"]
[1726556775959,0.4071,2301.1,2301.0,3.2078]
[1726556777354,0.84165,2301.1,2301.0,3.2078]
[1726556777554,0.4071,2301.1,2301.0,3.2078]
[1726556778263,0.84165,2301.1,2301.0,3.2078]
[1726556779350,0.84165,2301.1,2300.9,0.43458]
[1726556780267,0.4071,2301.1,2300.9,0.43458]
[1726556782355,0.84165,2301.1,2300.9,0.43458]
[1726556782556,0.4071,2301.1,2300.9,0.43458]
[1726556783355,0.4071,2301.1,2301.0,0.43457]
[1726556784753,0.4203,2301.2,2301.1,0.43455]
[1726556785057,0.4203,2301.2,2301.1,3.64235]
[1726556785458,0.4203,2301.2,2301.1,4.05245]
[1726556785659,0.3891,2301.3,2301.1,4.05245]
[1726556786363,0.3891,2301.3,2301.1,5.19234763]
[1726556787461,0.3842,2301.2,2301.1,5.19234763]
[1726556787863,0.3842,2301.2,2301.1,4.05245]
[1726556791959,0.3842,2301.2,2301.1,3.2078]
[1726556792165,0.3842,2301.2,2301.1,3.64235]
[1726556792460,0.3842,2301.2,2301.1,3.2078]
[1726556792868,0.3842,2301.2,2301.1,3.64235]
[1726556794766,0.3842,2301.2,2301.1,5.16484763]
[1726556795478,0.3842,2301.2,2301.1,4.02495]
[1726556797365,0.3842,2301.2,2301.1,5.16484763]
[1726556797571,0.3842,2301.2,2301.1,4.02495]
[1726556798369,0.3842,2301.2,2301.1,3.2078]
[1726556798971,0.3842,2301.2,2301.0,1.57445763]
[1726556799174,0.3842,2301.2,2301.0,4.78225763]
[1726556800674,0.3842,2301.2,2301.0,4.78258178]
[1726556801175,0.3842,2301.2,2301.0,4.34802178]
[1726556801375,0.3842,2301.2,2301.0,4.78257178]
[1726556801669,0.3842,2301.2,2301.1,0.43455]
[1726556802075,0.3842,2301.2,2301.1,0.83325]
[1726556802574,0.3891,2301.3,2301.2,0.43453]
[1726556802783,0.4062,2301.4,2301.3,0.43451]
[1726556803073,0.4062,2301.4,2301.2,2.82474178]
[1726556803471,1.26856,2301.6,2301.3,0.43451]
[1726556803672,0.83577,2301.5,2301.2,2.82474178]
[1726556804273,0.4013,2301.5,2301.3,0.43451]
[1726556804577,0.83577,2301.5,2301.2,1.68452]
[1726556804779,0.83577,2301.5,2301.2,2.82474178]
[1726556805467,0.83577,2301.5,2301.2,1.57474178]
[1726556805670,0.83577,2301.5,2301.1,4.11513267]
[1726556805671,0.83577,2301.5,2301.3,0.43451]
[1726556806485,0.83577,2301.5,2301.2,0.43452]
[1726556806675,0.43449,2301.4,2301.2,0.43452]
[1726556806877,0.83578,2301.5,2301.2,0.43452]
[1726556807775,0.4013,2301.5,2301.3,0.4345]
[1726556809071,0.4013,2301.5,2301.3,3.6423]
[1726556810186,0.83577,2301.5,2301.3,3.2078]
[1726556810882,0.83577,2301.5,2301.3,3.64231]
[1726556811182,0.4013,2301.5,2301.3,3.64231]
[1726556811682,0.83577,2301.5,2301.3,3.64231]
[1726556814385,0.43449,2301.4,2301.3,3.2078]
[1726556814586,0.4013,2301.5,2301.3,3.2078]
[1726556815377,0.83578,2301.5,2301.3,3.64231]
[1726556815777,0.4013,2301.5,2301.4,0.43449]
[1726556815985,0.8341,2301.6,2301.4,1.24008]
[1726556816182,0.8341,2301.6,2301.5,0.43447]
[1726556816387,0.8341,2301.6,2301.4,1.24008]
[1726556816890,0.8341,2301.6,2301.5,0.43447]
[1726556817093,0.8341,2301.6,2301.4,2.49008]
[1726556817494,0.84253,2301.8,2301.5,0.43447]
[1726556817677,0.43444,2301.7,2301.4,2.0556]
[1726556817991,0.43444,2301.7,2301.5,0.43447]
[1726556818288,0.43443,2301.7,2301.4,2.49009]
[1726556819785,1.2081,2301.8,2301.6,0.43445]
[1726556819982,1.2081,2301.8,2301.6,3.2078]
[1726556820177,1.2081,2301.8,2301.7,0.3922]
[1726556820988,1.64252,2301.8,2301.6,3.2078]
[1726556821194,1.2081,2301.8,2301.6,3.2078]
[1726556821384,1.64252,2301.8,2301.6,3.2078]
[1726556823094,1.64252,2301.8,2301.5,0.82876]
[1726556823296,1.64252,2301.8,2301.5,4.03656]
[1726556823897,1.64252,2301.8,2301.5,0.82876]
[1726556824086,1.64252,2301.8,2301.5,4.03656]
[1726556825193,1.64252,2301.8,2301.5,3.2078]
[1726556825387,0.43443,2301.7,2301.5,3.2078]
[1726556826298,1.25,2301.6,2301.2,4.34802178]
[1726556826489,0.84698,2301.5,2301.2,3.64233]
[1726556826684,0.4002,2301.4,2301.2,3.64233]
[1726556826989,0.8122,2301.4,2301.2,3.64233]
[1726556827191,0.8122,2301.4,2301.2,3.2078]
[1726556827589,0.8122,2301.4,2301.2,3.64233]
[1726556830411,0.8122,2301.4,2301.3,0.43451]
[1726556831402,0.412,2301.4,2301.3,0.82891]
[1726556831602,0.412,2301.4,2301.3,2.46091]
[1726556831908,0.4125,2301.5,2301.4,0.43449]
[1726556832415,0.84215,2301.6,2301.4,0.43449]
[1726556832615,0.4077,2301.6,2301.5,3.2078]
[1726556832817,0.4054,2301.7,2301.5,4.89227]
[1726556833013,0.4054,2301.7,2301.5,4.89226]
[1726556834716,0.4054,2301.7,2301.5,3.2078]
[1726556834917,2.08984,2301.7,2301.5,3.2078]
[1726556835306,2.08984,2301.7,2301.4,0.43448]
[1726556840817,0.4054,2301.7,2301.5,0.43447]
[1726556841017,0.4054,2301.7,2301.4,0.43448]
[1726556841018,0.83984,2301.7,2301.4,0.43448]
[1726556842024,0.83984,2301.7,2301.4,1.57470178]
[1726556842320,0.83984,2301.7,2301.4,0.43448]
[1726556843216,0.43447,2301.6,2301.3,1.57472178]
[1726556843415,0.43448,2301.5,2301.2,4.78254178]
[1726556843726,0.7766,2301.4,2301.2,4.34802178]
[1726556843927,1.63059,2301.4,2301.2,4.34802178]
[1726556844131,0.43451,2301.3,2301.2,3.2078]
[1726556845014,1.6306,2301.4,2301.2,4.34802178]
[1726556845224,0.43451,2301.3,2301.2,3.2078]
[1726556845523,1.1961,2301.4,2301.2,4.34802178]
[1726556845722,1.1961,2301.4,2301.2,3.2078]
[1726556845917,1.63061,2301.4,2301.2,3.2078]
[1726556846426,1.63061,2301.4,2301.2,4.34802178]
[1726556848120,1.63061,2301.4,2301.2,3.2078]
[1726556855530,1.63061,2301.4,2301.1,6.03256178]
[1726556856631,1.63061,2301.4,2301.1,2.82476178]
[1726556856833,1.63061,2301.4,2301.1,6.03256178]
[1726556857329,1.1961,2301.4,2301.2,0.43453]
[1726556857528,1.63059,2301.4,2301.1,6.03256178]
[1726556858226,1.1961,2301.4,2301.2,0.43452]
[1726556858420,1.63059,2301.4,2301.1,6.03256178]
[1726556861132,1.63059,2301.4,2301.1,2.82476178]
[1726556861429,1.63059,2301.4,2301.2,3.2078]
[1726556863137,1.63059,2301.4,2301.1,1.68454]
[1726556863346,1.63059,2301.4,2301.2,3.2078]
[1726556864735,1.1961,2301.4,2301.2,3.64233]
[1726556865034,1.1961,2301.4,2301.2,0.43453]
[1726556865425,1.63059,2301.4,2301.2,3.2078]
[1726556865637,1.1961,2301.4,2301.2,3.64233]
[1726556868540,1.63059,2301.4,2301.2,3.2078]
[1726556871142,1.1961,2301.4,2301.2,3.2078]
[1726556872243,1.63059,2301.4,2301.1,6.03256178]
[1726556872932,1.1961,2301.4,2301.1,6.03256178]
[1726556873936,1.63059,2301.4,2301.1,6.03256178]
[1726556874247,1.25,2301.3,2301.1,4.34802178]
[1726556874442,1.25,2301.3,2301.1,3.2078]
[1726556874839,1.25,2301.3,2301.1,3.64235]
[1726556875849,1.68451,2301.3,2301.1,3.2078]
[1726556877046,2.8806,2301.4,2301.1,3.64235]
[1726556880535,1.1961,2301.4,2301.2,0.43451]
[1726556880846,1.1961,2301.4,2301.2,0.81591]
[1726556881043,4.152,2301.9,2301.3,1.25]
[1726556881348,0.43438,2302.1,2301.8,1.25]
[1726556881646,0.4008,2302.1,2302.0,4.89218]
[1726556881944,0.418,2302.3,2302.0,4.89218]
[1726556882144,1.25312,2302.3,2302.0,4.89218]
[1726556882348,0.8188,2302.3,2302.0,4.89218]
[1726556882840,1.25313,2302.3,2302.0,4.4578]
[1726556883540,1.25313,2302.3,2302.0,3.2078]
[1726556883733,1.25,2302.2,2302.0,3.2078]
[1726556884248,0.3825,2302.1,2302.0,3.2078]
[1726556889351,0.3825,2302.1,2301.9,0.3954]
[1726556890351,2.06686,2302.1,2301.8,3.2078]
[1726556890549,1.6325,2302.1,2301.8,3.2078]
[1726556890951,0.43439,2302.0,2301.8,3.2078]
[1726556891252,0.8426,2301.9,2301.8,3.2078]
[1726556892546,0.43442,2301.8,2301.5,3.6081]
[1726556892747,0.3988,2301.8,2301.5,4.43377]
[1726556893653,0.3988,2301.8,2301.5,3.2078]
[1726556893654,1.6488,2301.8,2301.5,3.2078]
[1726556893950,0.43445,2301.6,2301.5,3.2078]
[1726556894149,0.43445,2301.6,2301.3,0.3975]
[1726556894350,1.2372,2301.5,2301.3,0.3975]
[1726556895058,1.2372,2301.5,2301.3,1.6475]
[1726556895258,0.8329,2301.5,2301.3,2.082]
[1726556896144,0.4156,2301.5,2301.3,2.082]
[1726556898556,0.4156,2301.5,2301.4,3.2078]
[1726556904659,0.4156,2301.5,2301.3,5.2898]
[1726556905462,0.4156,2301.5,2301.3,4.0398]
[1726556906461,1.25604,2301.7,2301.4,0.43449]
[1726556906766,0.43446,2301.6,2301.3,5.2898]
[1726556908961,1.68446,2301.6,2301.3,4.0398]
[1726556909156,0.4164,2301.5,2301.3,4.0398]
[1726556909566,0.4164,2301.5,2301.3,5.2898]
[1726556909955,0.43446,2301.6,2301.4,0.43449]
[1726556910161,1.67244,2301.7,2301.4,0.43449]
[1726556912064,0.43446,2301.6,2301.3,5.2898]
[1726556913871,1.67245,2301.7,2301.3,5.2898]
[1726556914075,0.43445,2301.6,2301.3,5.2898]
[1726556917263,0.43445,2301.6,2301.3,4.0398]
[1726556919269,0.43445,2301.6,2301.3,5.2898]
[1726556920872,2.488,2301.7,2301.4,0.43448]
[1726556921474,0.43445,2301.6,2301.3,5.2898]
[1726556921674,2.92244,2301.7,2301.3,5.2898]
[1726556924173,2.488,2301.7,2301.3,5.2898]
[1726556924374,2.488,2301.7,2301.4,0.43449]
[1726556924576,2.92244,2301.7,2301.4,0.43449]
[1726556924881,2.92244,2301.7,2301.3,5.2898]
[1726556935391,2.92244,2301.7,2301.3,6.43002178]
[1726556936785,2.92244,2301.7,2301.3,3.22222178]
[1726556936981,2.488,2301.7,2301.3,4.34802178]
[1726556937181,2.488,2301.7,2301.2,1.14022178]
[1726556937182,1.25,2301.4,2301.2,1.14022178]
[1726556937381,1.2238,2301.3,2301.2,1.14022178]
[1726556937592,1.2238,2301.3,2301.1,1.14022178]
[1726556938391,1.2238,2301.3,2301.0,4.74442178]
[1726556938392,1.65832,2301.3,2301.0,4.74442178]
[1726556938692,1.2238,2301.3,2301.0,4.74442178]
[1726556939590,1.2238,2301.3,2301.1,1.14022178]
[1726556939997,1.2238,2301.3,2301.0,5.17898178]
[1726556940192,1.2238,2301.3,2301.1,1.14022178]
[1726556940590,1.2238,2301.3,2301.1,2.82476178]
[1726556940894,1.2238,2301.3,2301.2,1.14022178]
[1726556941598,1.2238,2301.3,2301.1,2.82476178]
[1726556941896,1.2238,2301.3,2301.1,2.39022178]
[1726556942397,1.2238,2301.3,2301.1,2.82477178]
[1726556948095,1.2238,2301.3,2301.1,6.03257178]
[1726556953595,1.2238,2301.3,2301.1,4.89235]
[1726556957700,1.2238,2301.3,2301.1,6.03257178]
[1726556958903,7.3598,2301.8,2301.2,1.25]
[1726556959195,0.7647,2301.7,2301.5,0.43446]
[1726556959402,0.383,2301.7,2301.6,0.43445]
[1726556960098,0.7728,2301.9,2301.6,1.68445]
[1726556960302,1.1558,2301.9,2301.7,1.25]
[1726556960608,1.1558,2301.9,2301.7,0.3823]
[1726556960898,1.1558,2301.9,2301.8,3.2078]
[1726556961507,1.1558,2301.9,2301.6,3.55467178]
[1726556962704,1.1558,2301.9,2301.7,3.2078]
[1726556964505,1.1558,2301.9,2301.6,2.08135]
[1726556964810,1.1558,2301.9,2301.6,5.28915]
[1726556966002,1.1558,2301.9,2301.7,0.43443]
[1726556966504,0.3817,2301.9,2301.8,0.43442]
[1726556966804,0.4139,2302.1,2301.9,0.43439]
[1726556967000,0.4139,2302.1,2301.9,5.30959]
[1726556968107,0.4139,2302.1,2301.9,0.4174]
[1726556968301,1.6639,2302.1,2301.7,1.68442]
[1726556968502,1.6639,2302.1,2301.7,2.10182]
[1726556969114,1.6639,2302.1,2301.8,0.43441]
[1726556971201,1.6639,2302.1,2301.7,2.10183]
[1726556971407,1.6639,2302.1,2301.7,1.6674]
[1726556971610,1.6639,2302.1,2301.8,0.43441]
[1726556979527,1.6639,2302.1,2301.7,5.30962]
[1726556980116,2.09826,2302.1,2301.7,5.30962]
[1726556980421,1.6639,2302.1,2301.7,5.30962]
[1726556980921,1.6639,2302.1,2301.8,0.43442]
[1726556986327,0.4164,2302.0,2301.8,0.43442]
[1726556986527,0.3961,2301.9,2301.8,0.43442]
[1726556987233,0.3961,2301.9,2301.7,5.30963]
[1726556988729,0.3961,2301.9,2301.8,0.43442]
[1726556989629,0.4139,2302.1,2301.7,4.8752]
[1726556989630,0.43433,2302.3,2301.7,4.8752]
[1726556989837,1.63103,2302.3,2301.9,1.68439]
[1726556990033,1.1967,2302.3,2302.0,3.64218]
[1726556990334,1.1967,2302.3,2302.1,1.25]
[1726556997341,2.4467,2302.3,2302.0,3.2078]
[1726556998834,1.1967,2302.3,2302.1,1.68436]
[1726556999029,4.152,2302.8,2302.3,0.4343]
[1726556999235,1.1884,2302.7,2302.5,1.25]
[1726556999639,1.1884,2302.7,2302.6,1.25]
[1726556999934,1.1884,2302.7,2302.6,4.4578]
[1726557000139,4.58616,2303.2,2302.6,4.4578]
[1726557000338,1.1986,2303.0,2302.8,1.25]
[1726557000634,1.1986,2303.0,2302.9,3.2078]
[1726557001642,1.1986,2303.0,2302.6,3.2078]
[1726557001643,7.22519,2303.0,2302.6,3.2078]
[1726557001835,1.25,2302.9,2302.6,3.2078]
[1726557003037,1.25,2302.9,2302.3,3.3088]
[1726557003237,1.68422,2302.9,2302.3,5.30782]
[1726557003433,1.68422,2302.9,2302.3,4.8735]
[1726557003743,1.68422,2302.9,2302.3,5.30782]
[1726557004744,1.25,2302.9,2302.4,1.6843]
[1726557004950,1.25,2302.9,2302.3,3.6235]
[1726557004951,2.4486,2303.0,2302.6,1.25]
[1726557005139,1.1986,2303.0,2302.6,4.4578]
[1726557005343,1.1986,2303.0,2302.6,4.8786]
[1726557006237,1.1986,2303.0,2302.7,1.25]
[1726557006837,1.1986,2303.0,2302.7,1.68425]
[1726557007442,1.1986,2303.0,2302.7,1.25]
[1726557009044,1.25,2302.9,2302.6,3.2078]
[1726557012747,1.6328,2303.0,2302.6,3.2078]
[1726557012938,1.6328,2303.0,2302.7,0.3902]
[1726557013347,3.2078,2303.1,2302.7,0.3902]
[1726557013543,1.1843,2303.4,2303.1,0.43416]
[1726557013734,1.1843,2303.4,2303.3,1.25]
[1726557013937,1.1843,2303.4,2303.2,3.64195]
[1726557014247,1.1843,2303.4,2303.2,3.2078]
[1726557016144,1.1843,2303.4,2302.9,3.2078]
[1726557016442,1.61842,2303.4,2303.0,0.43418]
[1726557016649,1.61842,2303.4,2302.9,3.64199]
[1726557017347,1.61842,2303.4,2303.0,0.43419]
[1726557017544,0.43414,2303.3,2302.9,3.642]
[1726557017744,0.43416,2303.2,2302.9,3.2078]
[1726557017945,0.43414,2303.3,2302.9,3.2078]
[1726557018152,0.4219,2303.1,2302.9,3.2078]
[1726557018354,0.8043,2303.0,2302.9,3.2078]
[1726557023151,0.8043,2303.0,2302.8,0.43422]
[1726557023348,0.8043,2303.0,2302.8,3.64202]
[1726557024254,0.3874,2303.0,2302.8,3.64202]
[1726557024554,0.3874,2303.0,2302.9,0.4104]
[1726557027249,0.3874,2303.0,2302.8,3.2078]
[1726557029553,0.3833,2302.9,2302.8,3.2078]
[1726557031459,0.43424,2302.8,2302.5,0.101]
[1726557031658,0.43424,2302.8,2302.4,0.43429]
[1726557031659,0.84344,2302.8,2302.4,0.43429]
[1726557031861,0.84344,2302.8,2302.4,3.2078]
[1726557032265,0.84344,2302.8,2302.4,3.6421]
[1726557033157,0.4092,2302.8,2302.4,3.6421]
[1726557033964,0.4092,2302.8,2302.5,0.43428]
[1726557035256,0.3833,2302.9,2302.6,2.71]
[1726557035457,0.3833,2302.9,2302.7,4.04164]
[1726557035859,0.3833,2302.9,2302.7,3.6074]
[1726557036464,0.3824,2302.8,2302.7,3.2078]
[1726557036661,0.3824,2302.8,2302.5,0.43427]
[1726557038069,0.3824,2302.8,2302.6,0.43426]
[1726557038564,0.3824,2302.8,2302.5,1.25]
[1726557038764,0.3833,2302.9,2302.7,3.64205]
[1726557039168,0.3833,2302.9,2302.7,3.6039]
[1726557039468,0.3833,2302.9,2302.7,4.03814]
[1726557039962,0.7716,2302.9,2302.8,0.43423]
[1726557040161,0.7716,2302.9,2302.7,4.03814]
[1726557043868,0.7716,2302.9,2302.7,3.6039]
[1726557044172,0.7716,2302.9,2302.7,4.03814]
[1726557044671,0.7716,2302.9,2302.7,3.6039]
[1726557044977,0.7716,2302.9,2302.7,3.64204]
[1726557050176,0.7716,2302.9,2302.7,4.78226178]
[1726557050676,0.7716,2302.9,2302.7,3.64204]
[1726557052869,1.20581,2302.9,2302.7,3.2078]
[1726557053070,1.20582,2302.9,2302.7,3.2078]
[1726557054578,0.7716,2302.9,2302.7,3.2078]
[1726557054877,1.20582,2302.9,2302.7,3.2078]
[1726557055472,0.7716,2302.9,2302.7,3.2078]
[1726557055669,1.20581,2302.9,2302.7,3.2078]
[1726557058578,0.7716,2302.9,2302.7,3.2078]
[1726557058981,0.7716,2302.9,2302.7,3.6117]
[1726557059874,0.7716,2302.9,2302.7,4.8617]
[1726557061583,0.7716,2302.9,2302.7,1.6539]
[1726557061887,1.20581,2302.9,2302.7,1.6539]
[1726557062181,0.7716,2302.9,2302.7,1.6539]
[1726557062382,0.4342,2303.0,2302.7,1.6539]
[1726557062977,0.7966,2302.9,2302.7,1.6539]
[1726557063476,1.1839,2302.9,2302.7,1.6539]
[1726557067390,1.61811,2302.9,2302.7,1.25]
[1726557067587,1.61811,2302.9,2302.6,5.59802178]
[1726557068185,1.61811,2302.9,2302.6,4.4578]
[1726557068688,1.1839,2302.9,2302.6,4.4578]
[1726557069088,1.1839,2302.9,2302.6,4.89206]
[1726557070092,1.1839,2302.9,2302.4,1.14022178]
[1726557070093,0.43427,2302.6,2302.4,1.14022178]
[1726557070285,1.1755,2302.5,2302.3,0.43431]
[1726557070587,1.1755,2302.5,2302.4,1.25]
[1726557070778,0.3851,2302.5,2302.4,1.6843]
[1726557070978,0.7906,2302.7,2302.5,0.43428]
[1726557071177,0.7906,2302.7,2302.6,1.25]
[1726557072997,0.3851,2302.7,2302.6,1.25]
[1726557073197,4.152,2303.0,2302.8,0.43423]
[1726557073495,1.2131,2303.2,2302.9,1.25]
[1726557073698,1.2131,2303.2,2302.9,4.8539]
[1726557075197,1.2131,2303.2,2302.9,3.2078]
[1726557077303,1.2131,2303.2,2302.8,2.38870883]
[1726557077606,2.89725,2303.2,2302.8,1.13870883]
[1726557078297,0.43417,2303.1,2302.8,1.13870883]
[1726557079699,0.43417,2303.1,2302.7,0.3961]
[1726557080300,2.4631,2303.2,2302.7,0.3961]
[1726557080807,0.43418,2303.1,2302.7,0.3961]
[1726557081008,0.43419,2303.1,2302.7,0.3961]
[1726557081706,0.43418,2303.1,2302.7,0.3961]
[1726557083707,1.64726,2303.2,2302.8,4.4578]
[1726557083908,0.43417,2303.1,2302.8,4.8548]
[1726557084408,1.64726,2303.2,2302.8,4.8548]
[1726557084608,0.43417,2303.1,2302.8,4.8548]
[1726557085110,1.64726,2303.2,2302.8,4.8548]
[1726557085311,1.2131,2303.2,2302.8,4.8548]
[1726557085902,1.64726,2303.2,2302.8,4.8548]
[1726557086105,0.43417,2303.1,2302.9,1.25]
[1726557086305,1.2131,2303.2,2302.9,1.25]
[1726557086509,1.2131,2303.2,2302.9,1.6842]
[1726557086705,1.2131,2303.2,2303.1,1.25]
[1726557088904,0.3889,2303.2,2303.1,1.68417]
[1726557089718,0.3889,2303.2,2303.1,1.25]
[1726557090517,0.3889,2303.2,2303.1,1.68417]
[1726557090716,0.7826,2303.4,2303.1,1.25]
[1726557091016,1.61592,2303.4,2303.1,1.6489]
[1726557091818,1.61592,2303.4,2303.1,1.25]
[1726557094313,2.86592,2303.4,2303.1,1.25]
[1726557094522,2.86592,2303.4,2303.0,4.06118]
[1726557094711,2.86592,2303.4,2303.0,3.627]
[1726557094915,0.43414,2303.3,2303.0,3.627]
[1726557095120,0.43414,2303.3,2303.0,3.2078]
[1726557095623,1.68414,2303.3,2303.0,3.2078]
[1726557097423,0.43412,2303.4,2303.1,1.1065]
[1726557098321,0.4155,2303.3,2303.1,1.1065]
[1726557098522,0.84964,2303.3,2303.1,0.7738]
[1726557098720,0.43417,2303.1,2303.0,3.2078]
[1726557098913,1.68417,2303.1,2302.7,3.2078]
[1726557099114,0.4155,2303.0,2302.7,3.64205]
[1726557099621,0.4155,2303.0,2302.7,3.2078]
[1726557100220,1.6655,2303.0,2302.7,3.2078]
[1726557100630,2.0997,2303.0,2302.7,3.2078]
[1726557101327,1.6655,2303.0,2302.7,3.2078]
[1726557101528,0.4101,2302.9,2302.7,3.2078]
[1726557101823,0.8139,2302.9,2302.7,3.2078]
[1726557104228,0.8139,2302.9,2302.6,0.81556]
[1726557104424,0.8139,2302.9,2302.7,3.2078]
[1726557104626,0.43416,2303.2,2302.8,3.14422]
[1726557104823,4.5549,2303.4,2303.0,5.9178]
[1726557105024,0.4029,2303.4,2303.1,0.417]
[1726557107129,0.4168,2303.3,2303.1,0.417]
[1726557107620,0.4168,2303.3,2303.1,0.85116]
[1726557107821,0.4168,2303.3,2303.1,0.417]
[1726557110228,0.4029,2303.4,2303.2,2.71]
[1726557110530,0.4207,2303.5,2303.3,6.3298]
[1726557110828,0.4207,2303.5,2303.3,6.6625]
[1726557111029,0.4207,2303.5,2303.4,0.3927]
[1726557111930,15.164,2304.0,2303.4,4.7343]
[1726557112129,15.164,2304.0,2303.6,3.2078]
[1726557112130,0.8048,2303.9,2303.6,3.2078]
[1726557112629,1.23883,2303.9,2303.6,3.2078]
[1726557113219,0.8048,2303.9,2303.5,2.71]
[1726557114337,1.23882,2303.9,2303.5,2.71]
[1726557115430,0.8048,2303.9,2303.6,3.2078]
[1726557115839,0.8048,2303.9,2303.7,0.4192]
[1726557119732,0.8048,2303.9,2303.7,3.1292]
[1726557119937,0.8048,2303.9,2303.7,3.56326]
[1726557120134,0.8048,2303.9,2303.7,3.519]
[1726557121241,0.408,2303.9,2303.7,3.95306]
[1726557121432,0.4006,2304.0,2303.7,8.62656]
[1726557121629,0.4006,2304.0,2303.7,4.28576]
[1726557121841,0.4006,2304.0,2303.9,2.71]
[1726557122046,0.3846,2304.2,2303.9,5.9178]
[1726557122339,0.3846,2304.2,2304.1,2.71]
[1726557124130,0.3846,2304.2,2303.9,3.2078]
[1726557124327,0.4071,2304.1,2303.9,3.2078]
[1726557124537,0.4066,2304.0,2303.9,3.2078]
[1726557126839,0.4066,2304.0,2303.6,4.04757]
[1726557127532,0.4066,2304.0,2303.7,2.71]
[1726557127736,0.4066,2304.0,2303.8,0.43403]
[1726557127940,0.4066,2304.0,2303.8,0.83993]
[1726557128334,0.4066,2304.0,2303.8,0.4059]
[1726557128940,0.4066,2304.0,2303.7,3.47685]
[1726557131339,0.4066,2304.0,2303.7,3.14405]
[1726557132535,0.4066,2304.0,2303.7,2.71]
[1726557132737,0.4066,2304.0,2303.7,3.14406]
[1726557135137,0.4066,2304.0,2303.8,3.2078]
[1726557135544,0.4066,2304.0,2303.8,3.64184]
[1726557135948,0.4066,2304.0,2303.9,1.25]
[1726557136736,0.4066,2304.0,2303.8,3.2078]
[1726557137048,0.4039,2303.9,2303.8,4.4578]
[1726557137439,0.4039,2303.9,2303.8,3.2078]
[1726557137941,0.4039,2303.9,2303.5,6.76388]
[1726557138143,0.4096,2303.8,2303.5,3.2078]
[1726557140043,0.4096,2303.8,2303.5,3.64189]
[1726557140353,0.4096,2303.8,2303.5,5.9178]
[1726557140654,0.4096,2303.8,2303.5,6.35189]
[1726557140946,0.4096,2303.8,2303.5,5.9178]
[1726557141245,0.4096,2303.8,2303.5,6.3519]
[1726557141638,0.4096,2303.8,2303.5,5.9178]
[1726557146243,0.4096,2303.8,2303.5,3.2078]
[1726557146658,0.84365,2303.8,2303.5,3.2078]
[1726557146948,0.4096,2303.8,2303.5,3.2078]
[1726557148452,0.43411,2303.4,2303.3,0.101]
[1726557148645,0.43411,2303.4,2303.0,0.4881]
[1726557148848,1.2161,2303.3,2303.0,0.82128]
[1726557149857,1.2161,2303.3,2303.0,0.3871]
[1726557150851,1.2161,2303.3,2303.1,0.43417]
[1726557151455,1.2161,2303.3,2303.0,0.3871]
[1726557152351,1.2161,2303.3,2302.9,4.0483]
[1726557152551,1.2161,2303.3,2302.9,4.461]
[1726557153446,1.2161,2303.3,2303.0,0.43419]
[1726557153851,1.2161,2303.3,2303.1,0.43416]
[1726557156250,1.2161,2303.3,2303.2,0.4186]
[1726557159762,1.2161,2303.3,2303.0,0.43418]
[1726557159962,2.4661,2303.3,2303.0,0.85668]
[1726557160371,2.4661,2303.3,2303.1,0.43417]
[1726557160558,2.4661,2303.3,2303.0,0.85668]
[1726557161960,2.4661,2303.3,2303.0,0.85667]
[1726557162165,2.4661,2303.3,2303.0,0.4225]
[1726557162367,2.4661,2303.3,2303.1,0.43416]
[1726557165565,2.4661,2303.3,2303.0,0.43418]
[1726557166278,2.4661,2303.3,2302.9,3.2078]
[1726557166279,2.4661,2303.3,2303.1,0.43417]
[1726557166467,1.2161,2303.3,2303.2,0.43415]
[1726557166658,1.2161,2303.3,2303.2,0.85115]
[1726557166659,0.4044,2303.3,2303.2,0.85115]
[1726557167059,0.4044,2303.3,2303.2,0.417]
[1726557170575,0.4044,2303.3,2303.1,3.2078]
[1726557170773,0.8078,2303.2,2303.1,3.2078]
[1726557170971,0.8078,2303.2,2303.0,0.43418]
[1726557172680,1.25,2303.1,2302.8,3.64201]
[1726557172876,0.4091,2303.0,2302.9,0.43421]
[1726557173177,0.4091,2303.0,2302.9,0.85251]
[1726557173479,0.8078,2303.2,2303.1,0.43417]
[1726557173878,0.8078,2303.2,2303.0,0.84868]
[1726557176176,0.8078,2303.2,2303.0,4.05648]
[1726557176974,0.8078,2303.2,2303.0,0.84868]
[1726557177278,0.8078,2303.2,2303.0,4.05648]
[1726557178372,0.8078,2303.2,2303.0,0.84868]
[1726557178671,0.8078,2303.2,2303.0,4.05648]
[1726557179275,0.01417742,2303.1,2303.0,4.05648]
[1726557179582,0.01417742,2303.1,2303.0,3.65619013]
[1726557180476,0.01417742,2303.1,2303.0,0.44839013]
[1726557180773,0.01417742,2303.1,2303.0,3.65619013]
[1726557180973,0.01417742,2303.1,2303.0,4.90619013]
[1726557182786,0.02833221,2303.1,2303.0,4.92036482]
[1726557183181,0.02833221,2303.1,2303.0,6.05943853]
[1726557183382,0.02833221,2303.1,2303.0,10.40183853]
[1726557183678,0.02833221,2303.1,2303.0,12.34638732]
[1726557184085,0.02833221,2303.1,2303.0,12.34310623]
[1726557184285,0.02833221,2303.1,2303.0,12.91592418]
[1726557185481,0.02833221,2303.1,2303.0,10.39870457]
[1726557186578,0.02833221,2303.1,2303.0,7.19090457]
[1726557186787,0.02833221,2303.1,2303.0,10.39870457]
[1726557189482,0.02833221,2303.1,2303.0,12.34443079]
[1726557191188,0.02833221,2303.1,2303.0,12.91710161]